Cogmind - Beta 9.6 @@@ ROGUE MODE // 2020.05.10 @ 11:32:54 Player: Teratos Result: Destroyed by D-53 Grenadier with Mini Grenade Launcher Performance ------------- Evolutions (0) 0 Regions Visited (2) 400 Robots Destroyed (35) 175 Value Destroyed (453) 453 Prototype IDs (2) 40 Alien Tech Used (0) 0 Bonus (0) 0 TOTAL SCORE: 1068 Bonus ------- None Cogmind --------- Core Integrity 0/250 Matter 253/300 Energy 100/100 System Corruption 1% Temperature Cool (0) Movement Treading (160) Location -10/Mines Parts ------- > --- POWER (1) -------- (None) > --- PROPULSION (2) --- Light Treads Light Treads > --- UTILITY (2) ------ Improved Terrain Scanner Seismic Analyzer > --- WEAPON (2) ------- Heavy Assault Rifle > --- INVENTORY (4) ---- Visual Processing Unit Sensor Array Recalibrator Heavy Assault Rifle Peak State ------------ > --- POWER ------------ Ion Engine > --- PROPULSION ------- Light Treads Light Treads > --- UTILITY ---------- Improved Terrain Scanner Seismic Analyzer > --- WEAPON ----------- Heavy Assault Rifle Heavy Assault Rifle > --- INVENTORY -------- Light Ion Engine Sensor Array Recalibrator [Rating: 10] Favorites ----------- Power Ion Engine Engine Ion Engine Propulsion Light Treads Treads Light Treads Utility Seismic Analyzer Device Improved Terrain Scanner Storage Small Storage Unit Processor Seismic Analyzer Weapon Assault Rifle Ballistic Gun Assault Rifle Launcher Grenade Launcher Build | -11 -10 -10 ------- Run | Scr Mat Min Slots Evolved . | . . . Power . | . . . Propulsion . | . . . Utility . | . . . Weapon . | . . . Parts Attached 18 | 10 8 . Power 3 | 1 2 . Engine 3 | 1 2 . Core . | . . . Reactor . | . . . Propulsion 4 | 2 2 . Treads 4 | 2 2 . Leg . | . . . Wheel . | . . . Hover . | . . . Flight . | . . . Utility 5 | 4 1 . Device 2 | 1 1 . Storage 2 | 2 . . Processor 1 | 1 . . Hackware . | . . . Protection . | . . . Artifact . | . . . Weapon 6 | 3 3 . Energy Gun . | . . . Energy Cannon . | . . . Ballistic Gun 5 | 3 2 . Ballistic Cannon . | . . . Launcher 1 | . 1 . Special Weapon . | . . . Impact Weapon . | . . . Slashing Weapon . | . . . Piercing Weapon . | . . . Special Melee Weapon . | . . . Unidentified Prototypes . | . . . Parts Lost 2 | . . 2 Power 1 | . . 1 Propulsion . | . . . Utility . | . . . Weapon 1 | . . 1 Highest Loss Streak 2 | . . 2 Average Slot Usage (%) 99 | . 99 99 Engine 13 | . 14 13 Treads 28 | . 28 28 Device 13 | . 13 14 Processor 14 | . 14 14 Ballistic Gun 24 | . 27 14 Launcher 3 | . . 14 Naked Turns . | . . . Heaviest Build 17 | 17 12 12 Greatest Support 40 | 40 40 40 Greatest Overweight (x) . | . . . Average Overweight (x) . | . . . Largest Inventory Capacity 8 | 8 4 4 Average Capacity 4 | 4 4 4 Most Carried 4 | 1 4 4 Average Carried 2 | . 3 4 Final Capacity 4 | 4 4 4 Final Carried 4 | 1 4 4 Class Distribution -------------------- 65% | Mutant 34% | Scavenger-Mutant Dominant Class ---------------- Mutant | -10/Materials Scavenger-Mutant | -10/Mines Resources | -11 -10 -10 ----------- Run | Scr Mat Min Matter Collected 802 | 426 355 21 Remotely . | . . . Salvage Created 848 | 275 527 46 Parts 76 | 28 47 1 Haulers Intercepted 1 | . 1 . Recyclers Shooed 1 | . 1 . Parts Field Recycled . | . . . Retrieved Matter . | . . . Parts Self-Destructed . | . . . Prevented . | . . . Kills | -11 -10 -10 ------- Run | Scr Mat Min Combat Hostiles Destroyed 16 | . 14 2 Guns 14 | . 14 . AOE 2 | . . 2 Classes Destroyed 8 | 3 5 . Worker 5 | 2 3 . Tunneler 8 | 8 . . Hauler 1 | . 1 . Recycler 1 | 1 . . Mechanic 1 | . 1 . Watcher 3 | . 3 . Swarmer 11 | . 11 . Grunt 5 | . 3 2 Best Kill Streak 6 | 6 4 2 Combat Bots Only 3 | . 3 2 Max Kills in Single Turn 2 | 1 2 1 Gunslinging . | . . . Exploded 1 | . . 1 Melee . | . . . Uniques/NPCs Destroyed . | . . . Combat | -11 -10 -10 -------- Run | Scr Mat Min Damage Taken 853 | . 394 459 Core 256 | . 102 154 Absorbed by Shields . | . . . Core Remaining (%) 100 | 100 . . Volleys Fired 76 | 22 48 6 Largest 2 | 2 2 2 Hottest 53 | 40 46 53 Shots Fired 150 | 44 95 11 Gun 145 | 44 95 6 Cannon . | . . . Launcher 5 | . . 5 Special . | . . . Kinetic 145 | 44 95 6 Thermal . | . . . Explosive 5 | . . 5 Electromagnetic . | . . . Robot Hit Streak 8 | 8 8 7 Robot Miss Streak 6 | 6 5 1 Penetration Max . | . . . Secondary Targets 3 | . 3 . Max Gunslinging Chain 1 | . 1 . Shots Hit Robots 72 | 23 43 6 Core Hits 42 | 12 25 5 Critical Hits . | . . . Critical Kills . | . . . Critical Parts Destroyed . | . . . Melee Attacks . | . . . Impact . | . . . Slashing . | . . . Piercing . | . . . Sneak Attacks . | . . . Combat Hostiles . | . . . Follow-up Attacks . | . . . Damage Inflicted 1176 | 293 697 186 Guns 1024 | 293 697 34 Cannons . | . . . Explosions 152 | . . 152 Melee . | . . . Ramming . | . . . Kinetic 1024 | 293 697 34 Thermal . | . . . Explosive 152 | . . 152 Electromagnetic . | . . . Impact . | . . . Slashing . | . . . Piercing . | . . . Highest Corruption 1 | . 1 1 Average Corruption 1 | . 1 1 Corruption Purged . | . . . Effects 5 | . 1 4 Message Errors 2 | . . 2 Energy Discharges 1 | . . 1 Data Loss (minor) 1 | . . 1 Weapon Failures 1 | . 1 . Overload Shots . | . . . Overflow Damage . | . . . Projectiles . | . . . Explosions . | . . . Melee . | . . . Knockbacks . | . . . Impact . | . . . Kinetic . | . . . Secondary . | . . . Self-Inflicted Damage . | . . . Shots . | . . . Rammed . | . . . Targets Rammed . | . . . Kicked . | . . . Crushed . | . . . Highest Temperature 12 | . 1 12 Average Temperature 3 | . 1 6 Received Heat Transfer 117 | . 66 51 Siege Activations . | . . . Robots Corrupted . | . . . Combat Hostiles . | . . . Parts Fried . | . . . Impact Corruptions . | . . . Robots Melted . | . . . Combat Hostiles . | . . . Parts Melted . | . . . Heat Transferred . | . . . Parts Sabotaged . | . . . Parts Stolen . | . . . Parts Stripped . | . . . Power Chain Reactions . | . . . Missiles Intercepted . | . . . Alert | -11 -10 -10 ------- Run | Scr Mat Min Peak Influence 290 | 55 290 146 Average Influence 138 | 22 167 124 Maximum Alert Level 1 | . 1 . Low Security (%) 76 | 100 65 100 Level 1 23 | . 34 . Level 2 . | . . . Level 3 . | . . . Level 4 . | . . . Level 5 . | . . . High Security . | . . . Max Security . | . . . Squads Dispatched 3 | . 3 . Investigation 2 | . 2 . Extermination . | . . . Reinforcement 1 | . 1 . Assault . | . . . Garrison . | . . . Intercept . | . . . Construction Impeded . | . . . Haulers Reinforced . | . . . Stealth | -11 -10 -10 --------- Run | Scr Mat Min Distress Signals 2 | . 2 . Communications Jammed . | . . . Distress Signals . | . . . Times Spotted 30 | . 22 8 Peak Tracking Total 6 | . 4 6 Tactical Retreats 1 | . 1 . Traps | -11 -10 -10 ------- Run | Scr Mat Min Traps Triggered 1 | . 1 . Indirectly . | . . . Trap Hack Attempts . | . . . Triggered . | . . . Disarmed . | . . . Reprogrammed . | . . . Reused . | . . . Traps Extracted . | . . . Installed . | . . . Triggered . | . . . Machines | -11 -10 -10 ---------- Run | Scr Mat Min Machines Disabled 3 | . 2 1 Max in Single Turn 1 | . 1 1 Machines Sabotaged . | . . . Garrisons Compromised . | . . . Overloaded Fab Kills . | . . . Fab Network Shutdowns . | . . . Hacking | -11 -10 -10 --------- Run | Scr Mat Min Machines Accessed 8 | . 8 . Terminals 7 | . 7 . Fabricators . | . . . Repair Stations 1 | . 1 . Recycling Units . | . . . Scanalyzers . | . . . Garrison Access . | . . . Total Hacks 29 | . 29 . Successful 17 | . 17 . Failed 12 | . 12 . Catastrophic . | . . . Database Lockouts . | . . . Manual . | . . . Terminals 22 | . 22 . Fabricators . | . . . Repair Stations 7 | . 7 . Recycling Units . | . . . Scanalyzers . | . . . Garrison Access . | . . . Terminal Hacks 13 | . 13 . Record 2 | . 2 . Prototype ID Bank 1 | . 1 . Level Access Points 1 | . 1 . Branch Access Points 1 | . 1 . Emergency Access Points 1 | . 1 . Locate Traps 1 | . 1 . Security Status 1 | . 1 . Surveillance Status 1 | . 1 . Investigation Status 1 | . 1 . Recall Investigation 1 | . 1 . Hauler Manifests 1 | . 1 . Zone Layout 1 | . 1 . Fabricator Hacks . | . . . Repair Station Hacks 4 | . 4 . Scan Component 3 | . 3 . Repair 1 | . 1 . Recycling Unit Hacks . | . . . Scanalyzer . | . . . Garrison Access Hacks . | . . . Unauthorized Hacks . | . . . Terminals . | . . . Fabricators . | . . . Repair Stations . | . . . Recycling Units . | . . . Scanalyzers . | . . . Garrison Access . | . . . Data Cores Recovered . | . . . Used . | . . . Hacking Detections 7 | . 7 . Full Trace Events 2 | . 2 . Feedback Events . | . . . Feedback Blocked . | . . . Robot Schematics Acquired . | . . . Robots Built . | . . . Matter . | . . . Time . | . . . Total Robot Build Rating . | . . . Part Schematics Acquired . | . . . Parts Built . | . . . Matter . | . . . Time . | . . . Total Part Build Rating . | . . . Parts Repaired 1 | . 1 . Time 16 | . 16 . Parts Recycled . | . . . Recycled Matter . | . . . Retrieved Matter . | . . . Retrieved Components . | . . . Parts Scanalyzed . | . . . Part Schematics Acquired . | . . . Parts Damaged . | . . . Bothacking | -11 -10 -10 ------------ Run | Scr Mat Min Used RIF Installer . | . . . Robots Hacked . | . . . Non-combat . | . . . Combat . | . . . Robot Hacks Applied . | . . . Relay Couplers Released . | . . . Robots Rewired . | . . . Allies Hacked . | . . . Hacks Repelled . | . . . Allies | -11 -10 -10 -------- Run | Scr Mat Min Total Allies . | . . . Largest Group . | . . . Highest-Rated Group . | . . . Highest-Rated Ally . | . . . Total Orders . | . . . Ally Attacks . | . . . Total Damage . | . . . Kills . | . . . Allies Corrupted . | . . . Allies Melted . | . . . Intel | -11 -10 -10 ------- Run | Scr Mat Min Robot Analysis Total . | . . . Derelict Logs Recovered . | . . . Drone Launches . | . . . Drone Recoveries . | . . . Exploration | -11 -10 -10 ------------- Run | Scr Mat Min Turns Passed 1664 | 262 1144 258 Spaces Moved 876 | 122 603 151 Core 14 | 14 . . Treads 862 | 108 603 151 Legs . | . . . Wheels . | . . . Hover . | . . . Flight . | . . . Fastest Speed 50 | 50 160 160 Average Speed 158 | 147 160 160 Slowest Speed 160 | 160 160 160 Overloaded Moves . | . . . Propulsion Burnouts . | . . . Robots Hopped . | . . . Cave-ins Triggered . | . . . Exploration Rate (%) 45 | 6 95 35 Regions Visited 2 Branch Regions 1 Pre-discovered Areas . | . . . Known Exits Taken 1 | . 1 . Unknown Exits Taken 1 | 1 . . Scrap Searched . | . . . Spaces Dug . | . . . Terrain Destroyed 24 | . . 24 Melee . | . . . Projectile . | . . . AOE 24 | . . 24 Actions | -11 -10 -10 --------- Run | Scr Mat Min Total 1001 | 157 687 157 Wait 16 | . 16 . Move 874 | 121 602 151 Hop . | . . . Pick Up 6 | 1 5 . Fast Attach 15 | 10 5 . Attach . | . . . Detach . | . . . Swap 3 | . 3 . Drop 11 | 3 8 . Fire 76 | 22 48 6 Melee . | . . . Ram . | . . . Kick . | . . . Crush . | . . . Escape Stasis . | . . . Rewire . | . . . Trap . | . . . Miscellaneous . | . . . Route ------- -11/Scrapyard -10/Materials (discovered 5 exits: *Mat x3 / *Min x2) -10/Mines History --------- Turn | Location | Event 67 | -11/Scrapyard | Discovered new exit (range 14) 263 | -11/Scrapyard | Entered Materials 302 | -10/Materials | Build established: Mutant 473 | -10/Materials | Discovered new exit (range 15) 496 | -10/Materials | Repaired Imp. Terrain Scanner 555 | -10/Materials | Identified exit to Mines 720 | -10/Materials | Discovered new exit (range 12) 960 | -10/Materials | Discovered new exit (range 14) 1157 | -10/Materials | Discovered new exit (range 16) 1312 | -10/Materials | Identified exit to Materials 1393 | -10/Materials | Build established: Scavenger-Mutant 1407 | -10/Materials | Entered Mines 1462 | -10/Mines | Core integrity fell below 50% 1646 | -10/Mines | Assembled infested the area 1662 | -10/Mines | Core integrity fell below 20% 1665 | -10/Mines | Destroyed by D-53 Grenadier with Mini Grenade Launcher Last Messages --------------- 01571_ Pressure Siphon disabled. 01582_ U-05 Engineer lays Concrete. 01600_ FVT7EYS2K1IKMZ#LBQ J HHG/UZJ=APBRAL1TC 01600_ U-05 Engineer lays Concrete. 01612_ U-05 Engineer builds a Wall. 01616_ U-05 Engineer lays Concrete. 01617_ U-05 Engineer builds a Wall. 01626_ U-05 Engineer lays Concrete. 01646_ ALERT: Infestation in the mines, dispatching Demolisher response squad. 01651_ System corrupted: Component data lost. 01655_ C-30 ARC bursts open, deploying its payload. 01655_ D-53 Grenadier unfolds itself. 01657_ Ion Engine destroyed. 01657_ T-07 Excavator destroyed. 01660_ Grenade Launcher destroyed. 01662_ The unstable cave ceiling collapses. 01662_ U-05 Engineer builds a Wall. 01665_ The unstable cave ceiling collapses. 01665_ as-88624 destroyed. Map ----- +----------------------------------------------------+ | ??#?#?### ##??????? | | ??#?????## ##??##?# | | #??##??### ## ##??#?? | | ??##?#?## #### #???### | | ?##?##?# ##?# #??##?# | | ???###?# #### ##??### | | ??###?## #?##### ###### | | ?#??#### ## ##?##?## # | | ?####### ##### #?###??# | | ??##### ##?#?#####?### | | ?### ####?##???## | | ?## ####### ### | | #?# ### #### # | | #?# ##??# | | ?## "" ## ##?#### | | ### "" " ##### ##??#?## | | ??# """" ########### ####?## | | ?## #######?### ##?? | | #?## #####?##?### ##? | | ??## #####?#?###### ## | | ?## ###??#??###????# ### | | ??# ## ########???#?#######?? | | ?## u ##??????#????#???? | | #?# ###?###???#?????? | | #?# # # #??#?##?#?##??#? | | ??# @ ##??#?????? ???#? | | ?## #??#?#?? ?? ????? | | ??## #??????????????? | | ???## ##??? ?????????? | | ?#??## ##??????????????? | | #?#??####### d% #?????? ??????? | | ????#??????### ad ????????????? | | ??##???????#??# ???????????? | | ??#????????????# % ???????????? | | ??????????#?#??#? a ???????????? | | ????#?#?????#?#??? #???????????? | | ?#??????????#???#??????????????? | | ??????? ???? ??????????????????? | | ??#????????????????????????????? | | ???##??????????????????????????? | | ?????? ? ??? ??????????????????? | | ??????????? ???????????????????? | | ???????????????????????????????? | | ???????????????????????????????? | | ???????????????????????????????? | | ???????????????????????????????? | | ???????????????????????????????? | | ???????????????????????????????? | | ???????????????????????????????? | | ???????????????????????????????? | +----------------------------------------------------+ Best States ------------- Heat Dissipation 25 Energy Generation 10 Energy Capacity 250 Matter Stores 300 Matter Capacity 300 Sight Range 16 Terrain Scan Range 16 Terrain Scan Density 60 Evasion (%) 50 Recoil Reduction 2 Item Schematics ----------------- None Robot Schematics ------------------ None Fabricated ------------ Nothing Alien Tech Used ----------------- None Achievements -------------- None Challenges ------------ None Game ------ Seed BeamExplosiveBarrier Manual? 0 Play Time 00:20:57 Cumulative 13.6 hours Start 2020.05.10 @ 10:48:32 End 2020.05.10 @ 11:32:54 Sessions 1 Manual Loads 0 Difficulty Rogue Special Mode None Game No. 30 Rogue 30 Adventurer 0 Explorer 0 Win Type - Total 0 Types 0/0/0/0/0/0/0 Lore% 3 Gallery% 15 Achievement% 13 Wizard Run 0 Options --------- ASCII 0 Keyboard 0 Movement Numpad Keybinds 0 Fullscreen 1 Font 18/SmallcapsGlow Map View 76x50 Tactical HUD 1 Map Filters NONE Filters NONE Steam 1 RUN: 861b0c64-d5c5-4720-8588-deafeec9902f